Cogmind - Beta 15 @@@ ROGUE MODE // 2025.08.27 @ 22:19:19 Player: shapeshifter Result: Self-destructed Performance ------------- Evolutions (5) 2500 Regions Visited (9) 1800 Robots Destroyed (64) 320 Value Destroyed (2238) 2238 Prototype IDs (25) 500 Alien Tech Used (0) 0 Bonus (614) 614 TOTAL SCORE: 7972 Bonus ------- Follower Combat Kills 114 Entered DSFs 500 Cogmind --------- Core Integrity 1000/1000 Matter 199/300 Energy 100/100 System Corruption 0% Temperature Cool (0) Movement Walking (190) Ox1 Location -5/Factory Parts ------- > --- POWER (1) -------- (None) > --- PROPULSION (4) --- Carbon-fiber Leg > --- UTILITY (9) ------ Large Storage Unit 0b10 Alert Chip Melee Analysis Suite > --- WEAPON (3) ------- High-powered Shotgun Scythe > --- INVENTORY (15) --- Micro Nuclear Core Medium Storage Unit High-capacity Storage Unit Energy Well (350) Advanced Weight Redist. System Advanced Transmission Jammer Improved System Shield Heavy Laser Flak Gun EMP Blaster Heavy Rocket Launcher Rocket Array Rocket Array Remote Datajack Remote Datajack Peak State ------------ > --- POWER ------------ Micro Nuclear Core > --- PROPULSION ------- Carbon-fiber Leg Titanium Leg Titanium Leg Flexi-carbon Leg > --- UTILITY ---------- High-capacity Storage Unit Improved Sensor Array 0b10 Alert Chip Melee Analysis Suite Advanced Transmission Jammer Shock Absorption System Improved Shield Generator > --- WEAPON ----------- Rocket Array Scythe Scythe > --- INVENTORY -------- Carbon-fiber Leg Large Storage Unit Energy Well Advanced Weight Redist. System Advanced Transmission Jammer Improved System Shield High-powered Shotgun Flak Gun EMP Blaster Heavy Rocket Launcher Rocket Array Rocket Array Remote Datajack Remote Datajack [Rating: 62] Favorites ----------- Power Light Ion Engine Engine Light Ion Engine Power Core Micro Nuclear Core Propulsion Light Treads Treads Light Treads Leg Titanium Leg Wheel Compact Wheel Flight Unit Improved Flight Unit Utility High-capacity Storage Unit Device Seismic Detector Storage High-capacity Storage Unit Processor 0b10 Alert Chip Hackware Makeshift System Shield Protection Utility Shielding Weapon Scythe Energy Gun Medium Laser Ballistic Gun Assault Rifle Launcher Rocket Array Impact Weapon Heavy Hammer Slashing Weapon Scythe Build | -11 -10 -10 -10 -9 -8 -7 -7 -6 -5 ------- Run | Yrd Mat Min Exi Min Mat Fac DSF Fac Fac Slots Evolved 10 | . . . . . 4 2 . 2 2 Power . | . . . . . . . . . . Propulsion 2 | . . . . . 1 . . 1 . Utility 7 | . . . . . 2 2 . 1 2 Weapon 1 | . . . . . 1 . . . . Parts Attached 63 | 6 10 1 2 . 15 1 6 22 . Power 6 | 1 1 . . . 1 . . 3 . Engine 3 | 1 1 . . . . . . 1 . Core 3 | . . . . . 1 . . 2 . Reactor . | . . . . . . . . . . Propulsion 18 | 2 3 1 . . 4 . 3 5 . Treads 6 | 2 1 . . . 3 . . . . Leg 8 | . . . . . . . 3 5 . Wheel 3 | . 2 1 . . . . . . . Hover . | . . . . . . . . . . Flight 1 | . . . . . 1 . . . . Utility 23 | 2 2 . 1 . 6 1 3 8 . Device 8 | 1 . . . . 1 1 1 4 . Storage 5 | 1 2 . 1 . 1 . . . . Processor 4 | . . . . . 1 . 1 2 . Hackware 1 | . . . . . . . . 1 . Protection 5 | . . . . . 3 . 1 1 . Artifact . | . . . . . . . . . . Weapon 16 | 1 4 . 1 . 4 . . 6 . Energy Gun 2 | . 2 . . . . . . . . Energy Cannon . | . . . . . . . . . . Ballistic Gun 3 | 1 . . . . . . . 2 . Ballistic Cannon . | . . . . . . . . . . Launcher 3 | . . . . . . . . 3 . Special Weapon . | . . . . . . . . . . Impact Weapon 3 | . 2 . . . 1 . . . . Slashing Weapon 5 | . . . 1 . 3 . . 1 . Piercing Weapon . | . . . . . . . . . . Special Melee Weapon . | . . . . . . . . . . Unidentified Prototypes 2 | . . . . . 1 . . 1 . Parts Lost 30 | . 4 1 . . . . 4 21 . Power 4 | . 1 . . . . . 1 2 . Propulsion 10 | . 2 1 . . . . . 7 . Utility 11 | . . . . . . . 3 8 . Weapon 5 | . 1 . . . . . . 4 . Highest Loss Streak 9 | . 3 1 . . . . 2 9 . To Critical Strikes . | . . . . . . . . . . Average Backups 14 | 3 11 14 14 15 16 18 13 15 . Power . | . . . . 1 . . . . . Propulsion 1 | 1 3 2 1 1 2 4 1 . . Utility 5 | . 2 5 5 6 7 9 6 6 . Weapon 5 | 1 5 6 6 6 5 4 4 6 . Tool/Special . | . . . . . . . . . . Unused Backups 25 | . . . 4 . 7 . 1 2 11 Power 1 | . . . . . . . . . 1 Propulsion 3 | . . . 1 . 1 . 1 . . Utility 8 | . . . 2 . 2 . . . 4 Weapon 11 | . . . 1 . 4 . . 2 4 Tool/Special 2 | . . . . . . . . . 2 Average Slot Usage (%) 94 | . 95 99 100 100 99 92 90 87 . Engine 7 | . 13 14 14 14 3 . . 2 . Core 1 | . . . . . 5 7 1 1 . Treads 7 | . 24 . . . 23 23 2 . . Leg 8 | . . . . . . . 20 22 . Wheel 8 | . 2 27 28 28 3 . . . . Device 11 | . 14 14 14 14 2 7 7 12 . Storage 10 | . 14 14 14 14 9 7 7 6 . Processor 8 | . . . . . 8 7 13 17 . Protection 3 | . . . . . 15 15 12 4 . Energy Gun 2 | . 11 . . . . . . . . Ballistic Gun 2 | . 11 . . . . . . . . Impact Weapon 6 | . 2 28 18 14 2 . . . . Slashing Weapon 11 | . . . 9 14 24 23 23 16 . Peak Build Rating 62 | 6 11 11 14 14 32 33 42 62 . Average Rating 27 | 4 8 10 12 14 28 33 38 49 . On Entrance 18 | . 6 11 11 14 14 30 33 38 24 Naked Turns . | . . . . . . . . . . Heaviest Build 66 | 13 50 30 50 50 56 57 57 66 . Greatest Support 72 | 40 40 32 32 32 60 60 60 72 . Greatest Overweight (x) 8 | . 2 1 1 1 1 . . 8 . Average Overweight (x) . | . . . . 1 . . . . . Largest Inventory Capacity 20 | 8 20 15 20 20 20 20 20 20 . Average Capacity 17 | 7 17 15 17 20 19 20 15 18 . Most Carried 20 | 6 17 15 15 19 20 18 19 20 . Average Carried 14 | 4 11 14 14 16 18 18 13 15 . Final Capacity 20 | 8 15 15 20 20 20 20 20 15 15 Final Carried 19 | 5 14 14 15 19 19 18 13 15 15 Class Distribution -------------------- 49% | Mutant 35% | Gladiator 7% | Commander-Mutant 7% | Scavenger-Mutant Dominant Class ---------------- Mutant | -10/Materials Mutant | -10/Mines Mutant | -10/Exiles Commander-Mutant | -9/Mines Scavenger-Mutant | -8/Materials Scavenger-Mutant | -7/Factory Gladiator | -7/DSF Gladiator | -6/Factory Gladiator | -5/Factory Resources | -11 -10 -10 -10 -9 -8 -7 -7 -6 -5 ----------- Run | Yrd Mat Min Exi Min Mat Fac DSF Fac Fac Matter Collected 1262 | 227 285 20 20 . 170 . 70 470 . Remotely . | . . . . . . . . . . Salvage Created 2817 | 11 601 94 242 . 529 . 202 1138 . Parts 141 | 4 29 1 15 . 22 . 12 58 . Haulers Intercepted 5 | . 1 . . . 2 . . 2 . Recyclers Shooed . | . . . . . . . . . . Parts Field Recycled . | . . . . . . . . . . Retrieved Matter . | . . . . . . . . . . Parts Self-Destructed . | . . . . . . . . . . Prevented . | . . . . . . . . . . Kills | -11 -10 -10 -10 -9 -8 -7 -7 -6 -5 ------- Run | Yrd Mat Min Exi Min Mat Fac DSF Fac Fac Combat Hostiles Destroyed 47 | . 14 3 . . 7 . 3 20 . Melee 20 | . . 3 . . 7 . 3 7 . Guns 20 | . 14 . . . . . . 6 . AOE 7 | . . . . . . . . 7 . Classes Destroyed 13 | 1 5 . . . 3 . 1 3 . Worker 2 | . . . . . . . . 2 . Builder 3 | . . . . . . . . 3 . Tunneler 1 | 1 . . . . . . . . . Hauler 5 | . 1 . . . 2 . . 2 . Recycler 1 | . . . . . 1 . . . . Operator 1 | . 1 . . . . . . . . Watcher 4 | . 3 . . . . . . 1 . Swarmer 5 | . 3 1 . . 1 . . . . Grunt 26 | . 11 2 . . 2 . . 11 . Brawler 2 | . . . . . 1 . . 1 . Sentry 7 | . . . . . 3 . . 4 . Specialist 3 | . . . . . . . 3 . . Programmer 4 | . . . . . . . . 4 . Best Kill Streak 8 | 1 5 2 . . 4 . 2 8 . Combat Bots Only 6 | . 4 2 . . 3 . 2 6 . Max Kills in Single Turn 3 | 1 1 1 . . 1 . 1 3 . Gunslinging . | . . . . . . . . . . Exploded 3 | . . . . . . . . 3 . Melee 1 | . . 1 . . 1 . 1 1 . Uniques/NPCs Destroyed . | . . . . . . . . . . Combat | -11 -10 -10 -10 -9 -8 -7 -7 -6 -5 -------- Run | Yrd Mat Min Exi Min Mat Fac DSF Fac Fac Hostile Shots Fired 464 | . 90 19 . . 29 . 34 292 . Missed 142 | . 22 2 . . 8 . 8 102 . Hits 322 | . 68 17 . . 21 . 26 190 . Melee 3 | . . . . . . . . 3 . Projectile 319 | . 68 17 . . 21 . 26 187 . Critical Strikes 4 | . 1 1 . . . . 1 1 . Actively Blocked 1 | . . . . . . . . 1 . Damage Taken 4163 | . 795 212 . . 332 . 575 2249 . Core 831 | . 167 48 . . 67 . 50 499 . Absorbed by Shields 16 | . . . . . . . . 16 . Redirected to Shielding 53 | . . . . . . . 30 23 . Core Remaining (%) 66 | 100 . . . 14 87 . 92 41 . Volleys Fired 103 | 9 58 . . . . . . 36 . Largest 2 | 1 2 . . . . . . 1 . Hottest 70 | 20 70 . . . . . . 45 . Shots Fired 147 | 9 103 . . . . . . 35 . Gun 138 | 9 103 . . . . . . 26 . Cannon . | . . . . . . . . . . Launcher 9 | . . . . . . . . 9 . Special . | . . . . . . . . . . Kinetic 80 | 9 45 . . . . . . 26 . Thermal 58 | . 58 . . . . . . . . Explosive 9 | . . . . . . . . 9 . Electromagnetic . | . . . . . . . . . . Robot Hit Streak 13 | 2 13 . . . . . . 10 . Robot Miss Streak 5 | 2 5 . . . . . . 4 . Penetration Max . | . . . . . . . . . . Secondary Targets 2 | . 2 . . . . . . . . Max Gunslinging Chain 1 | . 1 . . . . . . . . Shots Hit Robots 195 | 5 72 9 9 . 25 . 8 67 . Core Hits 146 | 1 30 1 5 . 9 . 3 97 . Critical Kills 2 | . . . 1 . . . . 1 . Critical Parts Destroyed 3 | . 1 1 . . 1 . . . . Critical Strikes 21 | . 4 1 1 . 4 . 3 8 . Burn 3 | . 3 . . . . . . . . Destroy 1 | . . . . . . . . 1 . Smash 4 | . 1 1 1 . 1 . . . . Sever 13 | . . . . . 3 . 3 7 . Melee Attacks 127 | . 3 14 9 . 35 . 11 55 . Impact 22 | . 3 14 1 . 4 . . . . Slashing 105 | . . . 8 . 31 . 11 55 . Piercing . | . . . . . . . . . . Sneak Attacks 9 | . 1 . . . 5 . 2 1 . Combat Hostiles 2 | . . . . . . . 2 . . Follow-up Attacks 26 | . 1 3 1 . 8 . 2 11 . Damage Inflicted 6581 | 63 1032 354 751 . 983 . 321 3077 . Guns 1441 | 63 884 . . . . . . 494 . Cannons . | . . . . . . . . . . Explosions 1344 | . . . . . . . . 1344 . Melee 3787 | . 139 354 751 . 983 . 321 1239 . Ramming 9 | . 9 . . . . . . . . Kinetic 951 | 63 394 . . . . . . 494 . Thermal 490 | . 490 . . . . . . . . Explosive 1344 | . . . . . . . . 1344 . Electromagnetic . | . . . . . . . . . . Impact 708 | . 139 354 107 . 108 . . . . Slashing 3079 | . . . 644 . 875 . 321 1239 . Piercing . | . . . . . . . . . . Highest Corruption 5 | . . . . . . . . 5 . Average Corruption 2 | . . . . . . . . 2 . Corruption Purged . | . . . . . . . . . . Corruption Blocked . | . . . . . . . . . . Effects 24 | . . . . . . . . 24 . Message Errors 8 | . . . . . . . . 8 . Matter Fused 5 | . . . . . . . . 5 . Heat Flow Errors 3 | . . . . . . . . 3 . Energy Discharges 1 | . . . . . . . . 1 . Parts Rejected 1 | . . . . . . . . 1 . Data Loss (minor) 3 | . . . . . . . . 3 . Data Loss (major) 1 | . . . . . . . . 1 . Alerts 1 | . . . . . . . . 1 . Weapon Failures 1 | . . . . . . . . 1 . Overload Shots . | . . . . . . . . . . Overflow Damage 436 | . 129 46 117 . 90 . . 54 . Projectiles . | . . . . . . . . . . Explosions . | . . . . . . . . . . Melee 436 | . 129 46 117 . 90 . . 54 . Knockbacks . | . . . . . . . . . . Impact . | . . . . . . . . . . Kinetic . | . . . . . . . . . . Secondary . | . . . . . . . . . . Self-Inflicted Damage 42 | . . . . . . . . 42 . Shots 2 | . . . . . . . . 2 . Rammed 1 | . 1 . . . . . . . . Targets Rammed 1 | . 1 . . . . . . . . Kicked . | . . . . . . . . . . Crushed . | . . . . . . . . . . Highest Temperature 177 | . 138 7 . . 2 . . 177 . Average Temperature 47 | . 42 7 . . 2 . . 84 . Received Heat Transfer 1389 | . 432 138 . . 171 . . 648 . Siege Activations . | . . . . . . . . . . Martial Activations . | . . . . . . . . . . Shielding Activations . | . . . . . . . . . . Robots Disrupted . | . . . . . . . . . . Combat Hostiles . | . . . . . . . . . . Robots Corrupted 1 | . 1 . . . . . . . . Combat Hostiles . | . . . . . . . . . . Parts Fried 3 | . . 2 . . 1 . . . . Impact Corruptions 8 | . 4 2 . . 2 . . . . Robots Melted . | . . . . . . . . . . Combat Hostiles . | . . . . . . . . . . Parts Melted 3 | . 3 . . . . . . . . Heat Transferred 1559 | . 1559 . . . . . . . . Parts Sabotaged . | . . . . . . . . . . Parts Stolen . | . . . . . . . . . . Parts Stripped . | . . . . . . . . . . Power Chain Reactions . | . . . . . . . . . . Alert | -11 -10 -10 -10 -9 -8 -7 -7 -6 -5 ------- Run | Yrd Mat Min Exi Min Mat Fac DSF Fac Fac Maximum Alert Level . | . . . . . . . . . . Low Security (%) 100 | 100 100 100 . 100 100 100 100 100 . Level 1 . | . . . . . . . . . . Level 2 . | . . . . . . . . . . Level 3 . | . . . . . . . . . . Level 4 . | . . . . . . . . . . Level 5 . | . . . . . . . . . . High Security . | . . . . . . . . . . Max Security . | . . . . . . . . . . Peak Influence 181 | 5 136 53 . . 52 4 52 181 . Initial 81 | . . . . . . 4 5 27 81 Average 27 | . 40 12 . . 17 4 25 30 . Influence Increases 1484 | 5 390 131 27 . 276 4 80 571 . Destroy 0b10 Robot/C 924 | . 280 100 . . 176 . 48 320 . Destroy 0b10 Robot/NC 103 | 5 25 . 25 . 16 . . 32 . Destroy Leader 234 | . 58 20 . . 54 . 8 94 . Allied During Kill 31 | . . 11 2 . 18 . . . . Successful Hack 20 | . 12 . . . . 4 . 4 . Disable Machine 24 | . . . . . 12 . . 12 . Destroy Structure 61 | . . . . . . . . 61 . Lose Combat Pursuer 87 | . 15 . . . . . 24 48 . Influence Decreases 1403 | 5 390 131 27 . 264 8 36 457 85 Entered New Map 121 | . . . . . . 8 3 25 85 Time Decay 991 | 5 358 123 27 . 218 . . 260 . Lost Part 237 | . 32 . . . . . 33 172 . Lost Ally 54 | . . 8 . . 46 . . . . Squads Dispatched 11 | . 3 . . . 1 . 1 6 . Investigation 3 | . 2 . . . . . . 1 . Extermination 3 | . . . . . . . . 3 . Reinforcement 5 | . 1 . . . 1 . 1 2 . Assault . | . . . . . . . . . . Garrison . | . . . . . . . . . . Intercept . | . . . . . . . . . . Searches Triggered . | . . . . . . . . . . Construction Impeded 1 | . . . . . . . . 1 . Haulers Reinforced 1 | . . . . . . . . 1 . Active Scanning Responses . | . . . . . . . . . . Cargo Convoy Interrupts . | . . . . . . . . . . Stealth | -11 -10 -10 -10 -9 -8 -7 -7 -6 -5 --------- Run | Yrd Mat Min Exi Min Mat Fac DSF Fac Fac Distress Signals 4 | . . . . . 1 . . 3 . Communications Jammed . | . . . . . . . . . . Distress Signals . | . . . . . . . . . . Times Spotted 79 | . 17 5 . . 16 . 9 32 . Peak Tracking Total 7 | . 4 2 . . 4 . 4 7 . Tactical Retreats 5 | . 1 . . . . . 2 2 . Traps | -11 -10 -10 -10 -9 -8 -7 -7 -6 -5 ------- Run | Yrd Mat Min Exi Min Mat Fac DSF Fac Fac Traps Triggered 4 | . 3 . . . . . . 1 . Indirectly . | . . . . . . . . . . Trap Hack Attempts . | . . . . . . . . . . Triggered . | . . . . . . . . . . Disarmed . | . . . . . . . . . . Reprogrammed . | . . . . . . . . . . Reused . | . . . . . . . . . . Traps Extracted . | . . . . . . . . . . Installed . | . . . . . . . . . . Triggered . | . . . . . . . . . . Most Traps Carried 4 | . . . . 4 4 . . . . Machines | -11 -10 -10 -10 -9 -8 -7 -7 -6 -5 ---------- Run | Yrd Mat Min Exi Min Mat Fac DSF Fac Fac Machines Disabled 2 | . . . . . 1 . . 1 . Max in Single Turn 1 | . . . . . 1 . . 1 . Machines Repaired . | . . . . . . . . . . Machines Dismantled . | . . . . . . . . . . Machines Sabotaged . | . . . . . . . . . . Overloaded Fab Kills . | . . . . . . . . . . Hacking | -11 -10 -10 -10 -9 -8 -7 -7 -6 -5 --------- Run | Yrd Mat Min Exi Min Mat Fac DSF Fac Fac Machines Accessed 11 | . 2 . 2 . 1 1 . 5 . Terminals 5 | . 2 . . . . 1 . 2 . Fabricators 2 | . . . . . . . . 2 . Repair Stations . | . . . . . . . . . . Recycling Units 2 | . . . . . 1 . . 1 . Scanalyzers . | . . . . . . . . . . Garrison Access . | . . . . . . . . . . Total Hacks 21 | . 5 . 2 . 2 1 . 11 . Successful 11 | . 3 . 2 . 2 1 . 3 . Failed 10 | . 2 . . . . . . 8 . Catastrophic 1 | . . . . . . . . 1 . Database Lockouts . | . . . . . . . . . . Manual 6 | . 4 . 1 . . . . 1 . Terminals 9 | . 5 . . . . 1 . 3 . Fabricators 5 | . . . . . . . . 5 . Repair Stations . | . . . . . . . . . . Recycling Units 5 | . . . . . 2 . . 3 . Scanalyzers . | . . . . . . . . . . Garrison Access . | . . . . . . . . . . Terminal Hacks 5 | . 2 . 2 . . 1 . . . Record 1 | . . . 1 . . . . . . Robot Analysis 1 | . 1 . . . . . . . . Open DSF 1 | . . . . . . 1 . . . Branch Access Points 1 | . 1 . . . . . . . . Proto ID Catalog 1 | . . . 1 . . . . . . Fabricator Hacks 2 | . . . . . . . . 2 . Network Status 1 | . . . . . . . . 1 . Build 1 | . . . . . . . . 1 . Repair Station Hacks . | . . . . . . . . . . Recycling Unit Hacks 3 | . . . . . 2 . . 1 . Report Inventory 2 | . . . . . 1 . . 1 . Retrieve Components 1 | . . . . . 1 . . . . Scanalyzer . | . . . . . . . . . . Garrison Access Hacks . | . . . . . . . . . . Unauthorized Hacks 1 | . 1 . . . . . . . . Terminals 1 | . 1 . . . . . . . . Botnet 1 | . 1 . . . . . . . . Fabricators . | . . . . . . . . . . Repair Stations . | . . . . . . . . . . Recycling Units . | . . . . . . . . . . Scanalyzers . | . . . . . . . . . . Garrison Access . | . . . . . . . . . . Data Cores Recovered . | . . . . . . . . . . Used . | . . . . . . . . . . Hacking Detections 7 | . 2 . . . . . . 5 . Full Trace Events . | . . . . . . . . . . Feedback Events . | . . . . . . . . . . Feedback Blocked . | . . . . . . . . . . Robot Schematics Acquired . | . . . . . . . . . . Robots Built . | . . . . . . . . . . Authchips . | . . . . . . . . . . Time . | . . . . . . . . . . Total Robot Build Rating . | . . . . . . . . . . Part Schematics Acquired . | . . . . . . . . . . Parts Built 2 | . . . . . . . . 2 . Authchips . | . . . . . . . . . . Time 117 | . . . . . . . . 117 . Total Part Build Rating 14 | . . . . . . . . 14 . Parts Repaired . | . . . . . . . . . . Time . | . . . . . . . . . . Parts Recycled . | . . . . . . . . . . Recycled Matter . | . . . . . . . . . . Retrieved Matter . | . . . . . . . . . . Retrieved Components . | . . . . . . . . . . Parts Scanalyzed . | . . . . . . . . . . Part Schematics Acquired . | . . . . . . . . . . Parts Damaged . | . . . . . . . . . . Bothacking | -11 -10 -10 -10 -9 -8 -7 -7 -6 -5 ------------ Run | Yrd Mat Min Exi Min Mat Fac DSF Fac Fac Used RIF Installer . | . . . . . . . . . . Robots Hacked . | . . . . . . . . . . Non-combat . | . . . . . . . . . . Combat . | . . . . . . . . . . Robot Hacks Applied . | . . . . . . . . . . Relay Couplers Released . | . . . . . . . . . . Fabnet Peak Effective % . | . . . . . . . . . . Robots Rewired 3 | . . . 3 . . . . . . Allies Hacked . | . . . . . . . . . . Hacks Repelled . | . . . . . . . . . . Allies | -11 -10 -10 -10 -9 -8 -7 -7 -6 -5 -------- Run | Yrd Mat Min Exi Min Mat Fac DSF Fac Fac Total Allies 6 | . . 3 3 . . . . . . Largest Group 4 | . . 3 4 4 4 . . . . Highest-Rated Group 40 | . . 40 40 40 40 . . . . Highest-Rated Ally 16 | . . 16 16 16 16 . . . . Total Orders 1 | . . . 1 . . . . . . GUARD 1 | . . . 1 . . . . . . Ally Attacks 33 | . . 12 . . 21 . . . . Total Damage 298 | . . 144 . . 154 . . . . Kills 8 | . . 3 . . 5 . . . . Allies Corrupted . | . . . . . . . . . . Allies Melted . | . . . . . . . . . . Intel | -11 -10 -10 -10 -9 -8 -7 -7 -6 -5 ------- Run | Yrd Mat Min Exi Min Mat Fac DSF Fac Fac Active Infowar (turns) 4258 | 21 1081 482 787 98 142 . . 1647 . Optics 430 | . . . . . . . . 430 . Sensors 1275 | . . . . . 44 . . 1231 . Seismic 2567 | 21 1081 482 787 98 98 . . . . Jamming 1 | . . . . . . . . 1 . Robot Analysis Total 1 | . 1 . . . . . . . . Derelict Logs Recovered 4 | . . 2 . 2 . . . . . Drone Launches . | . . . . . . . . . . Drone Recoveries . | . . . . . . . . . . Exploration | -11 -10 -10 -10 -9 -8 -7 -7 -6 -5 ------------- Run | Yrd Mat Min Exi Min Mat Fac DSF Fac Fac Turns Passed 5412 | 161 1081 482 787 98 640 5 209 1949 . Spaces Moved 2803 | 90 428 404 678 58 342 3 82 718 . Core 33 | 15 . . . . . . . 18 . Treads 683 | 75 335 . . . 268 3 2 . . Legs 780 | . . . . . . . 80 700 . Wheels 1307 | . 93 404 678 58 74 . . . . Hover . | . . . . . . . . . . Flight . | . . . . . . . . . . Fastest Speed 50 | 50 105 100 100 115 115 160 126 123 . Average Speed 136 | 141 198 103 107 115 150 160 126 142 . Slowest Speed 450 | 160 320 115 115 115 240 160 160 450 . Overloaded Moves . | . . . . . . . . . . Propulsion Burnouts . | . . . . . . . . . . Robots Hopped . | . . . . . . . . . . Potential Cave-ins . | . . . . . . . . . . Cave-ins Triggered . | . . . . . . . . . . Exploration Rate (%) 45 | 5 66 73 88 23 30 . 58 22 . Regions Visited 9 Branch Regions 3 Pre-discovered Areas 2 | . . 1 1 . . . . . . Known Exits Taken 3 | . 1 . . 1 . 1 . . . Unknown Exits Taken 5 | 1 . 1 1 . 1 . . 1 . Scrap Searched 1 | . . 1 . . . . . . . Spaces Dug 1 | . . . . . . . . 1 . Terrain Destroyed 76 | . . . . . . . . 76 . Melee 1 | . . . . . . . . 1 . Projectile . | . . . . . . . . . . AOE 75 | . . . . . . . . 75 . Terrain Rammed . | . . . . . . . . . . Walls Destroyed . | . . . . . . . . . . Machines Disabled . | . . . . . . . . . . Actions | -11 -10 -10 -10 -9 -8 -7 -7 -6 -5 --------- Run | Yrd Mat Min Exi Min Mat Fac DSF Fac Fac Total 4089 | 115 551 446 729 89 438 3 176 1542 . Wait 872 | . 30 30 13 28 8 . 72 691 . Move 2794 | 89 427 403 677 57 341 2 81 717 . Hop . | . . . . . . . . . . Pick Up 95 | 11 18 1 6 4 26 . 3 26 . Fast Attach 1 | . . . . . 1 . . . . Attach 48 | 6 8 1 . . 8 1 4 20 . Detach 1 | . . . . . . . . 1 . Swap 26 | . 4 . 2 . 9 . 4 7 . Drop 42 | . 3 . 5 . 23 . 5 6 . Fire 103 | 9 58 . . . . . . 36 . Melee 88 | . 2 11 8 . 22 . 7 38 . Ram . | . . . . . . . . . . Kick . | . . . . . . . . . . Crush 1 | . 1 . . . . . . . . Escape Stasis . | . . . . . . . . . . Rewire 18 | . . . 18 . . . . . . Trap . | . . . . . . . . . . Miscellaneous . | . . . . . . . . . . Route ------- -11/Scrapyard -10/Materials (discovered 3 exits: [*Mat x2] / *Min) -10/Mines (discovered 2 exits: [*Mat] / *Exi) -10/Exiles -9/Mines -8/Materials -7/Factory -7/DSF -6/Factory -5/Factory History --------- Turn | Location | Event 5 | -11/Scrapyard | Discovered new exit (range 16) 162 | -11/Scrapyard | Entered Materials 303 | -10/Materials | Build established: Mutant 473 | -10/Materials | Identified exit to Mines 785 | -10/Materials | Discovered new exit (range 16) 1001 | -10/Materials | Discovered new exit (range 7) 1043 | -10/Materials | Core integrity fell below 50% 1101 | -10/Materials | Lost 3 parts (1p1n1w) 1243 | -10/Materials | Entered Mines 1267 | -10/Mines | Met a Derelict bent on vengeance 1276 | -10/Mines | Learned 2 Materials zone layouts 1335 | -10/Mines | Learned Materials garrison access intel 1352 | -10/Mines | Assisted by bots powering up and referring to "LRC-V3" 1472 | -10/Mines | Discovered new exit (range 5) 1517 | -10/Mines | Received a Rocket Launcher from a helpful Derelict 1566 | -10/Mines | Core integrity fell below 20% 1625 | -10/Mines | Learned location of Storage (-7) 1714 | -10/Mines | Deemed a non-threat by the Exiles lab entrance 1715 | -10/Mines | Discovered new exit (range 5) 1725 | -10/Mines | Entered Exiles 1725 | -10/Exiles | Found Exiles lab destroyed 1725 | -10/Exiles | Accompanied by 1 ally 1877 | -10/Exiles | Opened EX-Vault 1881 | -10/Exiles | Found 0b10 Alert Chip 1934 | -10/Exiles | Learned location of Zion (-6) 2229 | -10/Exiles | Discovered new exit (range 10) 2509 | -10/Exiles | Build established: Commander-Mutant 2512 | -10/Exiles | Entered Mines 2512 | -9/Mines | Accompanied by 4 allies 2517 | -9/Mines | Identified exit to Materials 2527 | -9/Mines | Learned Materials emergency access door positions 2548 | -9/Mines | Found a hidden stash of uninstalled traps 2610 | -9/Mines | Entered Materials 2610 | -8/Materials | Accompanied by 4 allies 2610 | -8/Materials | Evolved 4 slots: Propulsion x1, Utility x2, Weapon x1 2613 | -8/Materials | Loaded intel: 1 garrison access location 2906 | -8/Materials | Discovered new exit (range 3) 3186 | -8/Materials | Build established: Scavenger-Mutant 3250 | -8/Materials | Entered Factory 3250 | -7/Factory | Evolved 2 slots: Utility x2 3255 | -7/Factory | Identified exit to DSF 3255 | -7/Factory | Entered DSF 3313 | -7/DSF | Additional patrols routed to DSF 3401 | -7/DSF | Discovered new exit (range 15) 3464 | -7/DSF | Entered Factory 3464 | -6/Factory | Evolved 2 slots: Propulsion x1, Utility x1 3545 | -6/Factory | Build established: Gladiator 3812 | -6/Factory | Found Prototype Launcher 3813 | -6/Factory | Identified Rocket Array 3826 | -6/Factory | Found Rocket Array 3829 | -6/Factory | Found Rocket Array 4307 | -6/Factory | Fabricated Adv. Transmission Jammer (x2) 4757 | -6/Factory | Lost 5 parts (1p1n2u1w) 4851 | -6/Factory | Lost 3 parts (1n2u) 5157 | -6/Factory | Discovered new exit (range 14) 5244 | -6/Factory | Lost 9 parts (1p3n2u3w) 5260 | -6/Factory | Core integrity fell below 50% 5413 | -6/Factory | Entered another Factory area 5413 | -5/Factory | Evolved 2 slots: Utility x2 5413 | -5/Factory | Self-destructed Last Messages --------------- 05297_ K-01 Serf collects debris. 05310_ G-50 Soldier destroyed. 05321_ Acquired 51 matter. 05330_ System corrupted: Matter fused (-5). 05339_ Acquired Carbon-fiber Leg. 05342_ R-10 Processor collects Imp. Deuterium Engine. 05346_ R-10 Processor collects Lgt. Ion Engine. 05349_ Acquired Hvy. Laser. 05350_ System corrupted: Component data lost. 05352_ K-01 Serf collects debris. 05354_ R-10 Processor collects Hvy. Laser. 05356_ K-01 Serf collects debris. 05369_ K-01 Serf cleans the Fusion Modulator. 05379_ 20RLBQZHKV&C7M:VZ2GHQ|4PRNTE8| SY&HY%HSY 05381_ Acquired Med. Storage Unit. 05400_ System corrupted: Matter fused (-5). PARAMETERS=UTILITY+2 LOCATION=UNKNOWN GOAL=ESCAPE Map ----- +----------------------------------------------------+ | ????????????????????????????????????????????? | | ????????????????????????????????????????????? | | ????????????????????????????????????????????? | | ????????????????????????????????????????????? | | ????????????????????????????????????????????? | | ????????????????????????????????????????????? | | ????????????????????????????????????????????? | | ????????????????????????????????????????????? | | ????????????????????????????????????????????? | | ????????????????????????????????????????????? | | ????????????????????????????????????????????? | | ????????????????????????????????????????????? | | ????????????????????????????????????????????? | | ????????????????????????????????????????????? | | ????????????????????????????????????????????? | | ????????????????????????????????????????????? | | ????????????????????????????????????????????? | | ????????????????????????????????????????????? | | ????????????????????????????????????????????? | | ????????????????????????????????????????????? | | ????????????????????????????????????????????? | | ????????????????????????????????????????????? | | ?????????????################???????????????? | | ?????????????# #???????????????? | | ?????????????# #???????????????? | | ?????????????# @ #???????????????? | | ?????????????# "??????????? | | ?????????????# #### #??????? | | ?????????????# ##########??????? #??????? | | ?????????????# ???????????????????????????? | | ?????????????#??????????????????????????????? | | ????????????????????????????????????????????? | | ????????????????????????????????????????????? | | ????????????????????????????????????????????? | | ????????????????????????????????????????????? | | ????????????????????????????????????????????? | | ????????????????????????????????????????????? | | ????????????????????????????????????????????? | | ????????????????????????????????????????????? | | ????????????????????????????????????????????? | | ????????????????????????????????????????????? | | ????????????????????????????????????????????? | | ????????????????????????????????????????????? | | ????????????????????????????????????????????? | | ????????????????????????????????????????????? | | ????????????????????????????????????????????? | | ????????????????????????????????????????????? | | ????????????????????????????????????????????? | | ????????????????????????????????????????????? | | ????????????????????????????????????????????? | +----------------------------------------------------+ Best States ------------- Heat Dissipation 37 Energy Generation 16 Energy Capacity 290 Matter Stores 300 Matter Capacity 300 Sight Range 20 Robot Scan Range 15 Terrain Scan Density 10 Armor Coverage 150 Resistance: EX 25 Resistance: EM 15 Utility Shielding 33 Evasion (%) 63 Melee Accuracy 5 Recoil Reduction 3 Defensive Hacking 11 Item Schematics ----------------- None Robot Schematics ------------------ None Fabricated ------------ Adv. Transmission Jammer | x2 | -6/Factory | Preloaded Repaired ---------- Nothing Alien Tech Used ----------------- None Achievements -------------- None Challenges ------------ None Game ------ Seed SapperMicroPrototype Manual? 0 Play Time 00:41:07 Cumulative 211.7 hours Start 2025.08.27 @ 21:29:14 End 2025.08.27 @ 22:19:19 Sessions 1 Manual Loads 0 Difficulty Rogue Special Mode None Game No. 319 Rogue 319 Adventurer 0 Explorer 0 Win Type - Total 4 Types 3/0/1/0/0/0/0/0/0/0 Lore% 80 Gallery% 75 Achievement% 57 Wizard Run 0 Options --------- Layout 1 ASCII 0 Keyboard 0 Movement Mouse Keybinds 0 Fullscreen 1 Font 24/Smallcaps Map View 50x40 Zoom Use 0% Tactical HUD 1 Map Filters NONE Filters NONE Steam 1 RUN: be622bf4-6a3d-40ba-a36d-9f138ce256be